Cogmind - Beta 13 @@@ ROGUE MODE // 2024.04.05 @ 00:11:17 Player: eseft Result: Destroyed by P-60 Hacker with Shock Rifle Performance ------------- Evolutions (3) 1500 Regions Visited (5) 1000 Robots Destroyed (45) 225 Value Destroyed (1496) 1496 Prototype IDs (1) 20 Alien Tech Used (0) 0 Bonus (0) 0 TOTAL SCORE: 4241 Bonus ------- None Cogmind --------- Core Integrity 0/700 Matter 242/300 Energy 97/100 System Corruption 13% Temperature Cool (0) Movement Core (50) Location -7/Lower Caves Parts ------- > --- POWER (1) -------- (None) > --- PROPULSION (4) --- (None) > --- UTILITY (5) ------ Improved Signal Interpreter Improved Melee Analysis Suite Target Analyzer System Shield > --- WEAPON (3) ------- (None) > --- INVENTORY (5) ---- Advanced Targeting Computer Force Booster Peak State ------------ > --- POWER ------------ Improved Ion Engine > --- PROPULSION ------- Airjet Gravmag System Improved VTOL Module > --- UTILITY ---------- Improved Signal Interpreter Improved Melee Analysis Suite Target Analyzer Force Booster System Shield > --- WEAPON ----------- Greatsword > --- INVENTORY -------- Advanced Targeting Computer Force Booster Gauss Rifle [Rating: 39] Favorites ----------- Power Improved Ion Engine Engine Improved Ion Engine Power Core Nuclear Core Propulsion Light Treads Treads Light Treads Leg VSS Leg Hover Unit Gravmag System Flight Unit Improved VTOL Module Utility Large Storage Unit Device Heat Sink Storage Large Storage Unit Processor Improved Signal Interpreter Hackware System Shield Protection Hardened Medium Armor Plating Weapon Heavy Particle Cannon Energy Gun Small Laser Energy Cannon Heavy Particle Cannon Ballistic Gun Light Assault Rifle Launcher Heavy Missile Launcher Slashing Weapon Greatsword Build | -11 -10 -9 -8 -7 -7 ------- Run | Yrd Mat Mat Mat Fac Low Slots Evolved 6 | . . 2 2 2 . Power . | . . . . . . Propulsion 2 | . . 2 . . . Utility 3 | . . . 2 1 . Weapon 1 | . . . . 1 . Parts Attached 63 | 6 3 16 4 32 2 Power 5 | 1 . 2 . 2 . Engine 4 | 1 . 2 . 1 . Core 1 | . . . . 1 . Reactor . | . . . . . . Propulsion 14 | 2 . 4 . 8 . Treads 10 | 2 . 4 . 4 . Leg 1 | . . . . 1 . Wheel . | . . . . . . Hover 2 | . . . . 2 . Flight 1 | . . . . 1 . Utility 15 | 1 2 . 4 8 . Device 4 | . . . 2 2 . Storage 2 | 1 1 . . . . Processor 6 | . 1 . 2 3 . Hackware 1 | . . . . 1 . Protection 2 | . . . . 2 . Artifact . | . . . . . . Weapon 29 | 2 1 10 . 14 2 Energy Gun 4 | 1 . 2 . . 1 Energy Cannon 10 | . . 5 . 5 . Ballistic Gun 11 | 1 1 3 . 5 1 Ballistic Cannon . | . . . . . . Launcher 1 | . . . . 1 . Special Weapon . | . . . . . . Impact Weapon . | . . . . . . Slashing Weapon 3 | . . . . 3 . Piercing Weapon . | . . . . . . Special Melee Weapon . | . . . . . . Unidentified Prototypes 1 | . . . . 1 . Parts Lost 23 | . . 2 . 17 4 Power 3 | . . 1 . 2 . Propulsion 10 | . . 1 . 8 1 Utility 3 | . . . . 2 1 Weapon 7 | . . . . 5 2 Highest Loss Streak 11 | . . 1 . 11 4 To Critical Strikes 1 | . . . . 1 . Average Slot Usage (%) 89 | . 98 90 100 82 41 Engine 9 | . 14 10 9 6 . Treads 26 | . 28 35 36 17 . Hover 1 | . . . . 3 2 Device 4 | . . . 15 5 4 Storage 9 | . 13 11 9 5 . Processor 13 | . 12 11 11 16 23 Protection 1 | . . . . 4 . Energy Cannon 9 | . . 13 18 10 . Ballistic Gun 9 | . 28 8 . 2 1 Naked Turns . | . . . . . . Heaviest Build 54 | 10 26 39 41 54 13 Greatest Support 88 | 40 40 80 80 88 8 Greatest Overweight (x) 14 | . . . . 14 1 Average Overweight (x) . | . . . . . . Largest Inventory Capacity 15 | 8 15 15 15 15 5 Average Capacity 14 | 7 14 15 15 13 5 Most Carried 15 | 4 15 15 15 15 4 Average Carried 12 | 2 13 14 14 11 2 Final Capacity 15 | 8 15 15 15 5 5 Final Carried 15 | 4 15 15 15 4 2 Class Distribution -------------------- 57% | Mutant 16% | Scavenger-Mutant 11% | Scavenger-Tank 6% | Gunner 5% | Gladiator Dominant Class ---------------- Mutant | -10/Materials Mutant | -9/Materials Scavenger-Mutant | -8/Materials Scavenger-Tank | -7/Factory Mutant | -7/Lower Caves Resources | -11 -10 -9 -8 -7 -7 ----------- Run | Yrd Mat Mat Mat Fac Low Matter Collected 1159 | 155 258 348 30 358 10 Remotely . | . . . . . . Salvage Created 1532 | . 258 590 52 632 . Parts 93 | . 19 36 3 35 . Haulers Intercepted . | . . . . . . Recyclers Shooed 1 | . . 1 . . . Parts Field Recycled . | . . . . . . Retrieved Matter . | . . . . . . Parts Self-Destructed . | . . . . . . Prevented . | . . . . . . Kills | -11 -10 -9 -8 -7 -7 ------- Run | Yrd Mat Mat Mat Fac Low Combat Hostiles Destroyed 40 | . 9 13 1 17 . Melee 5 | . . . . 5 . Guns 17 | . 9 6 . 2 . Cannons 12 | . . 7 1 4 . AOE 6 | . . . . 6 . Classes Destroyed 12 | . 4 3 . 5 . Worker 2 | . 1 . . 1 . Recycler 2 | . . 1 . 1 . Watcher 1 | . 1 . . . . Swarmer 10 | . 6 4 . . . Cutter 2 | . . . . 2 . Grunt 8 | . 3 5 . . . Brawler 1 | . . 1 . . . Protector 1 | . . . . 1 . Sentry 6 | . . 3 1 2 . Specialist 1 | . . . . 1 . Hunter 8 | . . . . 8 . Programmer 3 | . . . . 3 . Best Kill Streak 8 | . 3 4 1 8 . Combat Bots Only 7 | . 3 4 1 7 . Max Kills in Single Turn 3 | . 1 1 1 3 . Gunslinging . | . . . . . . Exploded 3 | . . . . 3 . Melee 1 | . . . . 1 . Uniques/NPCs Destroyed . | . . . . . . Combat | -11 -10 -9 -8 -7 -7 -------- Run | Yrd Mat Mat Mat Fac Low Hostile Shots Fired 474 | . 43 62 5 300 64 Missed 158 | . 13 14 . 103 28 Damage Taken 4376 | . 263 527 89 2920 577 Core 875 | . 67 96 . 377 335 Absorbed by Shields . | . . . . . . Regen/Repaired (Parts) 98 | . . 98 . . . Core Remaining (%) 87 | 100 73 76 100 . . Volleys Fired 100 | . 31 38 3 26 2 Largest 3 | . 2 2 2 3 2 Hottest 225 | . 40 150 150 225 83 Shots Fired 204 | . 62 68 6 65 3 Gun 112 | . 62 34 . 13 3 Cannon 88 | . . 34 6 48 . Launcher 4 | . . . . 4 . Special . | . . . . . . Kinetic 107 | . 62 31 . 13 1 Thermal 91 | . . 37 6 48 . Explosive 4 | . . . . 4 . Electromagnetic 2 | . . . . . 2 Robot Hit Streak 18 | . 4 9 6 18 2 Robot Miss Streak 4 | . 4 3 . 3 1 Penetration Max . | . . . . . . Secondary Targets 2 | . . 2 . . . Max Gunslinging Chain 1 | . . 1 . . . Shots Hit Robots 140 | . 28 41 6 63 2 Core Hits 76 | . 16 18 1 39 2 Critical Kills . | . . . . . . Critical Parts Destroyed . | . . . . . . Critical Strikes 1 | . . . . 1 . Sever 1 | . . . . 1 . Melee Attacks 23 | . . . . 23 . Impact . | . . . . . . Slashing 23 | . . . . 23 . Piercing . | . . . . . . Sneak Attacks 1 | . . . . 1 . Combat Hostiles . | . . . . . . Follow-up Attacks . | . . . . . . Damage Inflicted 4798 | . 349 807 150 3461 31 Guns 796 | . 349 181 . 241 25 Cannons 1703 | . . 625 150 928 . Explosions 1644 | . . . . 1644 . Melee 643 | . . . . 643 . Ramming 12 | . . 1 . 5 6 Kinetic 786 | . 349 181 . 241 15 Thermal 1703 | . . 625 150 928 . Explosive 1644 | . . . . 1644 . Electromagnetic 10 | . . . . . 10 Impact . | . . . . . . Slashing 643 | . . . . 643 . Piercing . | . . . . . . Highest Corruption 13 | . . . . 12 13 Average Corruption 11 | . . . . 10 12 Corruption Purged . | . . . . . . Corruption Blocked . | . . . . . . Effects 31 | . . . . 25 6 Message Errors 5 | . . . . 3 2 Matter Fused 10 | . . . . 10 . Heat Flow Errors 6 | . . . . 6 . Energy Discharges 2 | . . . . . 2 Parts Fused 1 | . . . . 1 . Data Loss (minor) 2 | . . . . 1 1 Data Loss (major) 1 | . . . . 1 . Alerts 2 | . . . . 2 . Misdirections 2 | . . . . 1 1 Overload Shots . | . . . . . . Overflow Damage 212 | . . 28 . 184 . Projectiles 28 | . . 28 . . . Explosions 56 | . . . . 56 . Melee 128 | . . . . 128 . Knockbacks . | . . . . . . Impact . | . . . . . . Kinetic . | . . . . . . Secondary . | . . . . . . Self-Inflicted Damage 179 | . . . . 176 3 Shots 4 | . . . . 4 . Rammed 4 | . . 1 . 1 2 Targets Rammed 4 | . . 1 . 1 2 Kicked . | . . . . . . Crushed . | . . . . . . Highest Temperature 338 | . 12 338 45 297 . Average Temperature 115 | . 6 120 26 130 . Received Heat Transfer 549 | . 72 198 45 210 24 Effects 5 | . . 4 . 1 . Energy Bleed 1 | . . 1 . . . Interference 4 | . . 3 . 1 . Siege Activations . | . . . . . . Robots Corrupted . | . . . . . . Combat Hostiles . | . . . . . . Parts Fried . | . . . . . . Impact Corruptions . | . . . . . . Robots Melted . | . . . . . . Combat Hostiles . | . . . . . . Parts Melted 4 | . . . . 4 . Heat Transferred 2516 | . . 925 222 1369 . Parts Sabotaged . | . . . . . . Parts Stolen . | . . . . . . Parts Stripped . | . . . . . . Power Chain Reactions . | . . . . . . Alert | -11 -10 -9 -8 -7 -7 ------- Run | Yrd Mat Mat Mat Fac Low Peak Influence 204 | . 120 183 153 204 . Initial 51 | . . 27 51 . . Average 73 | . 67 100 64 68 . Maximum Alert Level 1 | . . . . 1 . Low Security (%) 98 | 100 100 100 100 96 . Level 1 1 | . . . . 3 . Level 2 . | . . . . . . Level 3 . | . . . . . . Level 4 . | . . . . . . Level 5 . | . . . . . . High Security . | . . . . . . Max Security . | . . . . . . Squads Dispatched 12 | . 3 1 1 7 . Investigation 6 | . 1 1 . 4 . Extermination 2 | . . . . 2 . Reinforcement 4 | . 2 . 1 1 . Assault . | . . . . . . Garrison . | . . . . . . Intercept . | . . . . . . Searches Triggered . | . . . . . . Construction Impeded . | . . . . . . Haulers Reinforced . | . . . . . . Active Scanning Responses . | . . . . . . Cargo Convoy Interrupts 1 | . . . . 1 . Stealth | -11 -10 -9 -8 -7 -7 --------- Run | Yrd Mat Mat Mat Fac Low Distress Signals 5 | . . 3 1 1 . Communications Jammed . | . . . . . . Distress Signals . | . . . . . . Times Spotted 86 | . 14 26 7 34 5 Peak Tracking Total 13 | . 3 6 5 13 5 Tactical Retreats 1 | . . . 1 . . Traps | -11 -10 -9 -8 -7 -7 ------- Run | Yrd Mat Mat Mat Fac Low Traps Triggered 1 | . . 1 . . . Indirectly . | . . . . . . Trap Hack Attempts . | . . . . . . Triggered . | . . . . . . Disarmed . | . . . . . . Reprogrammed . | . . . . . . Reused . | . . . . . . Traps Extracted . | . . . . . . Installed . | . . . . . . Triggered . | . . . . . . Machines | -11 -10 -9 -8 -7 -7 ---------- Run | Yrd Mat Mat Mat Fac Low Machines Disabled 1 | . . 1 . . . Max in Single Turn 1 | . . 1 . . . Machines Repaired . | . . . . . . Machines Dismantled . | . . . . . . Machines Sabotaged . | . . . . . . Overloaded Fab Kills . | . . . . . . Hacking | -11 -10 -9 -8 -7 -7 --------- Run | Yrd Mat Mat Mat Fac Low Machines Accessed 18 | . 4 5 2 7 . Terminals 13 | . 3 4 2 4 . Fabricators . | . . . . . . Repair Stations 1 | . . 1 . . . Recycling Units 2 | . 1 . . 1 . Scanalyzers 1 | . . . . 1 . Garrison Access 1 | . . . . 1 . Total Hacks 48 | . 8 12 9 19 . Successful 19 | . 3 5 6 5 . Failed 29 | . 5 7 3 14 . Catastrophic 6 | . . 3 . 3 . Database Lockouts . | . . . . . . Manual 19 | . 2 8 6 3 . Terminals 36 | . 6 10 9 11 . Fabricators . | . . . . . . Repair Stations 2 | . . 2 . . . Recycling Units 4 | . 2 . . 2 . Scanalyzers 3 | . . . . 3 . Garrison Access 3 | . . . . 3 . Terminal Hacks 14 | . 3 3 6 2 . Record 5 | . . . 3 2 . Robot Analysis 1 | . . 1 . . . Alert Level 2 | . 1 1 . . . Locate Traps 1 | . . . 1 . . Dispatch Records 1 | . 1 . . . . Transport Status 1 | . 1 . . . . Zone Layout 3 | . . 1 2 . . Fabricator Hacks . | . . . . . . Repair Station Hacks 2 | . . 2 . . . Scan Component 1 | . . 1 . . . Repair 1 | . . 1 . . . Recycling Unit Hacks 1 | . . . . 1 . Report Inventory 1 | . . . . 1 . Scanalyzer 2 | . . . . 2 . Insert Component 1 | . . . . 1 . Analyze 1 | . . . . 1 . Garrison Access Hacks . | . . . . . . Unauthorized Hacks . | . . . . . . Terminals . | . . . . . . Fabricators . | . . . . . . Repair Stations . | . . . . . . Recycling Units . | . . . . . . Scanalyzers . | . . . . . . Garrison Access . | . . . . . . Data Cores Recovered . | . . . . . . Used . | . . . . . . Hacking Detections 16 | . 3 4 2 7 . Full Trace Events 6 | . 1 1 . 4 . Feedback Events . | . . . . . . Feedback Blocked . | . . . . . . Robot Schematics Acquired . | . . . . . . Robots Built . | . . . . . . Authchips . | . . . . . . Time . | . . . . . . Total Robot Build Rating . | . . . . . . Part Schematics Acquired 1 | . . . . 1 . Parts Built . | . . . . . . Authchips . | . . . . . . Time . | . . . . . . Total Part Build Rating . | . . . . . . Parts Repaired 1 | . . 1 . . . Time 26 | . . 26 . . . Parts Recycled . | . . . . . . Recycled Matter . | . . . . . . Retrieved Matter . | . . . . . . Retrieved Components . | . . . . . . Parts Scanalyzed 1 | . . . . 1 . Part Schematics Acquired 1 | . . . . 1 . Parts Damaged . | . . . . . . Bothacking | -11 -10 -9 -8 -7 -7 ------------ Run | Yrd Mat Mat Mat Fac Low Used RIF Installer . | . . . . . . Robots Hacked . | . . . . . . Non-combat . | . . . . . . Combat . | . . . . . . Robot Hacks Applied . | . . . . . . Relay Couplers Released . | . . . . . . Fabnet Peak Effective % . | . . . . . . Robots Rewired . | . . . . . . Allies Hacked . | . . . . . . Hacks Repelled . | . . . . . . Allies | -11 -10 -9 -8 -7 -7 -------- Run | Yrd Mat Mat Mat Fac Low Total Allies . | . . . . . . Largest Group . | . . . . . . Highest-Rated Group . | . . . . . . Highest-Rated Ally . | . . . . . . Total Orders . | . . . . . . Ally Attacks . | . . . . . . Total Damage . | . . . . . . Kills . | . . . . . . Allies Corrupted . | . . . . . . Allies Melted . | . . . . . . Intel | -11 -10 -9 -8 -7 -7 ------- Run | Yrd Mat Mat Mat Fac Low Robot Analysis Total 1 | . . 1 . . . Derelict Logs Recovered . | . . . . . . Drone Launches . | . . . . . . Drone Recoveries . | . . . . . . Exploration | -11 -10 -9 -8 -7 -7 ------------- Run | Yrd Mat Mat Mat Fac Low Turns Passed 4748 | 106 1152 1034 636 1721 99 Spaces Moved 2675 | 60 600 510 372 1003 130 Core 107 | 2 . . . 6 99 Treads 2060 | 58 600 510 372 520 . Legs 123 | . . . . 123 . Wheels . | . . . . . . Hover 385 | . . . . 354 31 Flight . | . . . . . . Fastest Speed 50 | 50 160 160 160 56 50 Average Speed 149 | 156 160 160 160 142 68 Slowest Speed 750 | 160 160 160 160 750 120 Overloaded Moves . | . . . . . . Propulsion Burnouts . | . . . . . . Robots Hopped . | . . . . . . Cave-ins Triggered . | . . . . . . Exploration Rate (%) 25 | 5 52 32 22 17 23 Regions Visited 5 Branch Regions 1 Pre-discovered Areas . | . . . . . . Known Exits Taken 4 | . 1 1 1 1 . Unknown Exits Taken 1 | 1 . . . . . Scrap Searched . | . . . . . . Spaces Dug 7 | . . . . 7 . Terrain Destroyed 48 | . . 6 . 42 . Melee 7 | . . . . 7 . Projectile 6 | . . 6 . . . AOE 35 | . . . . 35 . Terrain Rammed . | . . . . . . Walls Destroyed . | . . . . . . Machines Disabled . | . . . . . . Actions | -11 -10 -9 -8 -7 -7 --------- Run | Yrd Mat Mat Mat Fac Low Total 3212 | 69 738 664 410 1195 136 Wait 243 | . 82 75 14 72 . Move 2670 | 59 599 509 371 1002 130 Hop . | . . . . . . Pick Up 57 | 4 16 13 9 15 . Fast Attach 23 | 6 2 3 2 10 . Attach 23 | . . 3 2 16 2 Detach 11 | . 1 1 1 8 . Swap 17 | . 1 10 . 6 . Drop 41 | . 6 11 8 16 . Fire 100 | . 31 38 3 26 2 Melee 23 | . . . . 23 . Ram 3 | . . . . 1 2 Kick . | . . . . . . Crush 1 | . . 1 . . . Escape Stasis . | . . . . . . Rewire . | . . . . . . Trap . | . . . . . . Miscellaneous . | . . . . . . Route ------- -11/Scrapyard -10/Materials (discovered 2 exits: *Mat x2) -9/Materials -8/Materials -7/Factory -7/Lower Caves History --------- Turn | Location | Event 2 | -11/Scrapyard | Met Revision 17 23 | -11/Scrapyard | Discovered new exit (range 14) 107 | -11/Scrapyard | Entered Materials 314 | -10/Materials | Build established: Mutant 430 | -10/Materials | Discovered new exit (range 16) 453 | -10/Materials | Identified exit to Materials 1155 | -10/Materials | Discovered exit to Materials (range 16) 1259 | -10/Materials | Entered another Materials area 1259 | -9/Materials | Evolved 2 slots: Propulsion x2 2170 | -9/Materials | Repaired Lgt. Treads 2284 | -9/Materials | Discovered new exit (range 5) 2292 | -9/Materials | Identified exit to Materials 2293 | -9/Materials | Entered another Materials area 2293 | -8/Materials | Evolved 2 slots: Utility x2 2593 | -8/Materials | Build established: Scavenger-Mutant 2887 | -8/Materials | Discovered new exit (range 7) 2895 | -8/Materials | Identified exit to Factory 2929 | -8/Materials | Entered Factory 2929 | -7/Factory | Evolved 2 slots: Utility x1, Weapon x1 3229 | -7/Factory | Build established: Scavenger-Tank 3756 | -7/Factory | Build established: Gunner 3930 | -7/Factory | Cargo convoy interrupted 3960 | -7/Factory | Destroyed 7 combat bots 3988 | -7/Factory | System corruption reached 10% 4015 | -7/Factory | Lost 11 parts (1p4n2u4w) 4198 | -7/Factory | Build established: Mutant 4582 | -7/Factory | Discovered new exit (range 3) 4641 | -7/Factory | Core integrity fell below 50% 4649 | -7/Factory | Identified exit to Lower Caves 4650 | -7/Factory | Entered Lower Caves 4670 | -7/Lower Caves | Spotted B-75 Beast 4688 | -7/Lower Caves | Core integrity fell below 20% 4726 | -7/Lower Caves | Ambushed by research squad 4743 | -7/Lower Caves | Lost 4 parts (1n1u2w) 4749 | -7/Lower Caves | Destroyed by P-60 Hacker with Shock Rifle Last Messages --------------- 04657_ U3XBPW/AJ: PMSVUNEJEGL0NQ1KWGY/ =P%N 04657_ Slug penetrates H-55 Commando. 04659_ Slug penetrates Wall. 04662_ Penetrated by Slug. 04671_ Gauss Rifle destroyed. 04673_ System corrupted: Energy discharge (-1). 04673_ Acquired 6 matter. 04675_ Arc Projector destroyed. 04679_ Slug penetrates Wall. 04686_ Airjet destroyed. 04690_ >QZFVFHSVHU5Z&HR3O2SSBPWQEJZ% 04707_ System corrupted: Component data lost. 04709_ Slug penetrates Abandoned Machinery. 04712_ Penetrated by Slug. 04712_ Force Booster destroyed. 04714_ Acquired 4 matter. 04715_ Penetrated by Slug. 04726_ P-60 Hacker: "UNIQUE TECHNOLOGY DETECTED, NEUTRALIZE FOR ANALYSIS." 04728_ Slug penetrates Wall. 04732_ System corrupted: Energy discharge (-16). Map ----- +----------------------------------------------------+ | ???????????????????????????? ## ???????? | | ??????????????????????????? ???????? | | ???????????????????????????# ???????? | | ???????????????????????????# ????????? | | ??????????????????????????# ????????? | | ?????????????????????????? #?###????? | | ?????????????????????????? ### ###### | | ?????????????????????????? ## | | ????????????????????????? | | ?????????????????????????? #### | | ??????????????????????????????###### ##??? | | ???????????????????????????????????# #####???? | | ??????????????????????????????###### ##???????? | | ????????????????????????####?## ##???????? | | ????????????????????????# "## ##??????? | | ????????????????????????#"" p #??????? | | ????????????????????????#""" ## #?????? | | ????????????????????????# "" ### #?????? | | ????????????????????????#" ## #?## ##?????? | | ?????????????????##?????##???# ##??? #??????? | | ?????????????????# ########## #????# ?????? | | ??????????????????# #?????# ????? | | ???????????????????# #??????### ???? | | ???????????????????## #??????????#??? | | ????????????????????## ####?????????????? | | ?????????????????????# @ ##????????????????? | | ????????????????????# ### #?????????????????? | | ????????????????????# ???# #?????????????????? | | ????????????????????# ????# ##?????????????????? | | ????????????????????#????? #??????????????????? | | ?????????????????????????# #??????????????????? | | ?????????????????????????# ##??????????????????? | | ?????????????????????????#####???????????????????? | | ?????????????????????????????????????????????????? | | ?????????????????????????????????????????????????? | | ?????????????????????????????????????????????????? | | ?????????????????????????????????????????????????? | | ?????????????????????????????????????????????????? | | ?????????????????????????????????????????????????? | | ?????????????????????????????????????????????????? | | ?????????????????????????????????????????????????? | | ?????????????????????????????????????????????????? | | ?????????????????????????????????????????????????? | | ?????????????????????????????????????????????????? | | ?????????????????????????????????????????????????? | | ?????????????????????????????????????????????????? | | ?????????????????????????????????????????????????? | | ?????????????????????????????????????????????????? | | | | | +----------------------------------------------------+ Best States ------------- Heat Dissipation 48 Energy Generation 14 Energy Capacity 265 Matter Stores 300 Matter Capacity 300 Sight Range 16 Robot Scan Range 14 Terrain Scan Density 10 Armor Coverage 225 Evasion (%) 53 Targeting Accuracy 8 Melee Accuracy 6 Target Analysis 5 Recoil Reduction 4 Force Boost 20 Defensive Hacking 10 Item Schematics ----------------- Med. Treads | -7/Factory | Scanalyzed Robot Schematics ------------------ None Fabricated ------------ Nothing Alien Tech Used ----------------- None Achievements -------------- More Dakka Please Part-time Mechanic Party Time System Compromised Challenges ------------ None Game ------ Seed CryofiberDirtyMallet Manual? 0 Play Time 01:33:54 Cumulative 6.8 hours Start 2024.04.04 @ 22:25:42 End 2024.04.05 @ 00:11:17 Sessions 1 Manual Loads 0 Difficulty Rogue Special Mode None Game No. 7 Rogue 7 Adventurer 0 Explorer 0 Win Type - Total 0 Types 0/0/0/0/0/0/0/0/0 Lore% 12 Gallery% 9 Achievement% 7 Wizard Run 0 Options --------- Layout 0 ASCII 0 Keyboard 1 Movement Vi Keybinds 0 Fullscreen 1 Font 18/SmallcapsGlow Map View 76x50 Zoom Use 0% Tactical HUD 1 Map Filters NONE Filters NONE Steam 1 RUN: 4606db98-cd09-4e61-8ea6-c0f30c5e7e66